Cogmind - Beta 14 @@@ ROGUE MODE // 2024.10.18 @ 16:50:13 Player: Tereza Result: Destroyed by MY-DOT(R) with Subdweller Beam Cannon Performance ------------- Evolutions (0) 0 Regions Visited (3) 600 Robots Destroyed (13) 65 Value Destroyed (358) 358 Prototype IDs (0) 0 Alien Tech Used (0) 0 Bonus (75) 75 TOTAL SCORE: 1098 Bonus ------- Follower Combat Kills 75 Cogmind --------- Core Integrity 0/250 Matter 260/300 Energy 125/125 System Corruption 0% Temperature Hot (214) Movement Walking (120) Location -10/Subcaves Parts ------- > --- POWER (1) -------- Light Ion Engine > --- PROPULSION (2) --- Aluminum Leg Aluminum Leg > --- UTILITY (2) ------ Small Storage Unit Signal Interpreter > --- WEAPON (2) ------- Battle Rifle Battle Cannon > --- INVENTORY (8) ---- Light Ion Engine Aluminum Leg Aluminum Leg Targeting Computer Light Armor Plating Heavy Assault Rifle Mini Grenade Launcher Mining Laser Peak State ------------ > --- POWER ------------ Light Ion Engine > --- PROPULSION ------- Aluminum Leg Aluminum Leg > --- UTILITY ---------- Small Storage Unit Signal Interpreter > --- WEAPON ----------- Battle Rifle Battle Cannon > --- INVENTORY -------- Light Ion Engine Aluminum Leg Aluminum Leg Targeting Computer Light Armor Plating Heavy Assault Rifle Mini Grenade Launcher Mining Laser [Rating: 10] Favorites ----------- Power Light Ion Engine Engine Light Ion Engine Propulsion Aluminum Leg Treads Light Treads Leg Aluminum Leg Utility Small Storage Unit Storage Small Storage Unit Processor Signal Interpreter Weapon Light Cannon Energy Gun EM Pulse Gun Ballistic Gun Heavy Assault Rifle Ballistic Cannon Light Cannon Special Weapon Mining Laser Build | -11 -10 -10 -10 ------- Run | Yrd Mat Min Sub Slots Evolved . | . . . . Power . | . . . . Propulsion . | . . . . Utility . | . . . . Weapon . | . . . . Parts Attached 16 | 5 4 5 2 Power 2 | 1 . 1 . Engine 2 | 1 . 1 . Core . | . . . . Reactor . | . . . . Propulsion 4 | 2 . 2 . Treads 2 | 2 . . . Leg 2 | . . 2 . Wheel . | . . . . Hover . | . . . . Flight . | . . . . Utility 2 | 1 1 . . Device . | . . . . Storage 1 | 1 . . . Processor 1 | . 1 . . Hackware . | . . . . Protection . | . . . . Artifact . | . . . . Weapon 8 | 1 3 2 2 Energy Gun 1 | . 1 . . Energy Cannon . | . . . . Ballistic Gun 3 | 1 1 . 1 Ballistic Cannon 3 | . 1 1 1 Launcher . | . . . . Special Weapon 1 | . . 1 . Impact Weapon . | . . . . Slashing Weapon . | . . . . Piercing Weapon . | . . . . Special Melee Weapon . | . . . . Unidentified Prototypes . | . . . . Parts Lost . | . . . . Power . | . . . . Propulsion . | . . . . Utility . | . . . . Weapon . | . . . . Highest Loss Streak . | . . . . To Critical Strikes . | . . . . Average Slot Usage (%) 98 | . 93 99 100 Engine 14 | . 14 14 14 Treads 8 | . 28 5 . Leg 19 | . . 22 28 Storage 14 | . 14 14 14 Processor 13 | . 7 14 14 Ballistic Gun 14 | . 14 14 14 Ballistic Cannon 13 | . 11 13 14 Peak Build Rating 10 | 5 9 9 10 Average Rating 8 | 3 7 8 9 On Entrance 5 | . 5 9 9 Naked Turns . | . . . . Heaviest Build 16 | 12 16 16 14 Greatest Support 40 | 40 40 40 20 Greatest Overweight (x) 1 | . . 1 . Average Overweight (x) . | . . . . Largest Inventory Capacity 8 | 8 8 8 8 Average Capacity 7 | 6 8 8 8 Most Carried 8 | 7 8 8 8 Average Carried 7 | 4 7 7 8 Final Capacity 8 | 8 8 8 8 Final Carried 8 | 7 8 8 8 Class Distribution -------------------- 100% | Mutant Dominant Class ---------------- Mutant | -10/Materials Mutant | -10/Mines Mutant | -10/Subcaves Resources | -11 -10 -10 -10 ----------- Run | Yrd Mat Min Sub Matter Collected 631 | 190 54 336 51 Remotely . | . . . . Salvage Created 350 | . 64 254 32 Parts 24 | . 6 14 4 Haulers Intercepted . | . . . . Recyclers Shooed . | . . . . Parts Field Recycled . | . . . . Retrieved Matter . | . . . . Parts Self-Destructed 3 | . . . 3 Prevented . | . . . . Kills | -11 -10 -10 -10 ------- Run | Yrd Mat Min Sub Combat Hostiles Destroyed 10 | . 1 8 1 Guns 6 | . . 5 1 Cannons 4 | . 1 3 . Classes Destroyed 5 | . 2 2 1 Recycler 1 | . . 1 . Watcher 2 | . 2 . . Swarmer 3 | . . 3 . Grunt 6 | . 1 5 . Subdweller 1 | . . . 1 Best Kill Streak 4 | . 1 4 1 Combat Bots Only 3 | . 1 3 1 Max Kills in Single Turn 2 | . 1 2 1 Gunslinging . | . . . . Exploded . | . . . . Melee . | . . . . Uniques/NPCs Destroyed . | . . . . Combat | -11 -10 -10 -10 -------- Run | Yrd Mat Min Sub Hostile Shots Fired 56 | . 1 40 15 Missed 13 | . . 9 4 Damage Taken 665 | . 12 367 286 Core 259 | . 12 111 136 Absorbed by Shields . | . . . . Core Remaining (%) 100 | 100 . . . Volleys Fired 46 | . 8 30 8 Largest 2 | . 2 2 2 Hottest 123 | . 58 123 64 Shots Fired 92 | . 16 60 16 Gun 46 | . 8 30 8 Cannon 42 | . 8 26 8 Launcher . | . . . . Special 4 | . . 4 . Kinetic 88 | . 16 56 16 Thermal 4 | . . 4 . Explosive . | . . . . Electromagnetic . | . . . . Robot Hit Streak 8 | . 8 7 4 Robot Miss Streak 3 | . 2 3 2 Penetration Max . | . . . . Secondary Targets . | . . . . Shots Hit Robots 49 | . 10 29 10 Core Hits 17 | . 3 12 2 Critical Kills . | . . . . Critical Parts Destroyed . | . . . . Critical Strikes 1 | . . 1 . Blast 1 | . . 1 . Melee Attacks . | . . . . Impact . | . . . . Slashing . | . . . . Piercing . | . . . . Sneak Attacks . | . . . . Combat Hostiles . | . . . . Follow-up Attacks . | . . . . Damage Inflicted 845 | . 153 509 183 Guns 359 | . 62 219 78 Cannons 486 | . 91 290 105 Explosions . | . . . . Melee . | . . . . Ramming . | . . . . Kinetic 845 | . 153 509 183 Thermal . | . . . . Explosive . | . . . . Electromagnetic . | . . . . Impact . | . . . . Slashing . | . . . . Piercing . | . . . . Highest Corruption . | . . . . Average Corruption . | . . . . Corruption Purged . | . . . . Corruption Blocked . | . . . . Overload Shots . | . . . . Overflow Damage 7 | . 7 . . Projectiles 7 | . 7 . . Explosions . | . . . . Melee . | . . . . Knockbacks 7 | . 1 6 . Impact . | . . . . Kinetic 6 | . 1 5 . Secondary 1 | . . 1 . Self-Inflicted Damage . | . . . . Shots . | . . . . Rammed . | . . . . Targets Rammed . | . . . . Kicked . | . . . . Crushed . | . . . . Highest Temperature 259 | . . 30 259 Average Temperature 27 | . . 11 174 Received Heat Transfer 527 | . 6 159 362 Siege Activations . | . . . . Robots Corrupted . | . . . . Combat Hostiles . | . . . . Parts Fried . | . . . . Impact Corruptions . | . . . . Robots Melted . | . . . . Combat Hostiles . | . . . . Parts Melted . | . . . . Heat Transferred . | . . . . Parts Sabotaged . | . . . . Parts Stolen . | . . . . Parts Stripped . | . . . . Power Chain Reactions . | . . . . Alert | -11 -10 -10 -10 ------- Run | Yrd Mat Min Sub Peak Influence 260 | . 81 260 . Initial 31 | . . 31 . Average 62 | . 28 72 . Maximum Alert Level 1 | . . 1 . Low Security (%) 92 | 100 100 90 . Level 1 7 | . . 9 . Level 2 . | . . . . Level 3 . | . . . . Level 4 . | . . . . Level 5 . | . . . . High Security . | . . . . Max Security . | . . . . Squads Dispatched 1 | . 1 . . Investigation . | . . . . Extermination . | . . . . Reinforcement 1 | . 1 . . Assault . | . . . . Garrison . | . . . . Intercept . | . . . . Searches Triggered . | . . . . Construction Impeded . | . . . . Haulers Reinforced . | . . . . Active Scanning Responses . | . . . . Cargo Convoy Interrupts . | . . . . Stealth | -11 -10 -10 -10 --------- Run | Yrd Mat Min Sub Distress Signals . | . . . . Communications Jammed . | . . . . Distress Signals . | . . . . Times Spotted 20 | . 4 11 5 Peak Tracking Total 4 | . 2 3 4 Tactical Retreats . | . . . . Traps | -11 -10 -10 -10 ------- Run | Yrd Mat Min Sub Traps Triggered . | . . . . Indirectly . | . . . . Trap Hack Attempts . | . . . . Triggered . | . . . . Disarmed . | . . . . Reprogrammed . | . . . . Reused . | . . . . Traps Extracted . | . . . . Installed . | . . . . Triggered . | . . . . Machines | -11 -10 -10 -10 ---------- Run | Yrd Mat Min Sub Machines Disabled 2 | . . 2 . Max in Single Turn 1 | . . 1 . Machines Repaired . | . . . . Machines Dismantled . | . . . . Machines Sabotaged . | . . . . Overloaded Fab Kills . | . . . . Hacking | -11 -10 -10 -10 --------- Run | Yrd Mat Min Sub Machines Accessed 1 | . 1 . . Terminals 1 | . 1 . . Fabricators . | . . . . Repair Stations . | . . . . Recycling Units . | . . . . Scanalyzers . | . . . . Garrison Access . | . . . . Total Hacks 3 | . 3 . . Successful 2 | . 2 . . Failed 1 | . 1 . . Catastrophic . | . . . . Database Lockouts . | . . . . Manual 2 | . 2 . . Terminals 3 | . 3 . . Fabricators . | . . . . Repair Stations . | . . . . Recycling Units . | . . . . Scanalyzers . | . . . . Garrison Access . | . . . . Terminal Hacks 1 | . 1 . . Surveillance Status 1 | . 1 . . Fabricator Hacks . | . . . . Repair Station Hacks . | . . . . Recycling Unit Hacks . | . . . . Scanalyzer . | . . . . Garrison Access Hacks . | . . . . Unauthorized Hacks 1 | . 1 . . Terminals 1 | . 1 . . Botnet 1 | . 1 . . Fabricators . | . . . . Repair Stations . | . . . . Recycling Units . | . . . . Scanalyzers . | . . . . Garrison Access . | . . . . Data Cores Recovered . | . . . . Used . | . . . . Hacking Detections . | . . . . Full Trace Events . | . . . . Feedback Events . | . . . . Feedback Blocked . | . . . . Robot Schematics Acquired . | . . . . Robots Built . | . . . . Authchips . | . . . . Time . | . . . . Total Robot Build Rating . | . . . . Part Schematics Acquired . | . . . . Parts Built . | . . . . Authchips . | . . . . Time . | . . . . Total Part Build Rating . | . . . . Parts Repaired . | . . . . Time . | . . . . Parts Recycled . | . . . . Recycled Matter . | . . . . Retrieved Matter . | . . . . Retrieved Components . | . . . . Parts Scanalyzed . | . . . . Part Schematics Acquired . | . . . . Parts Damaged . | . . . . Bothacking | -11 -10 -10 -10 ------------ Run | Yrd Mat Min Sub Used RIF Installer . | . . . . Robots Hacked . | . . . . Non-combat . | . . . . Combat . | . . . . Robot Hacks Applied . | . . . . Relay Couplers Released . | . . . . Fabnet Peak Effective % . | . . . . Robots Rewired . | . . . . Allies Hacked . | . . . . Hacks Repelled . | . . . . Allies | -11 -10 -10 -10 -------- Run | Yrd Mat Min Sub Total Allies 1 | . . 1 . Largest Group 1 | . . 1 . Highest-Rated Group 31 | . . 31 . Highest-Rated Ally 31 | . . 31 . Total Orders . | . . . . Ally Attacks 14 | . . 14 . Total Damage 171 | . . 171 . Kills 4 | . . 4 . Allies Corrupted . | . . . . Allies Melted . | . . . . Intel | -11 -10 -10 -10 ------- Run | Yrd Mat Min Sub Robot Analysis Total . | . . . . Derelict Logs Recovered 2 | . . 2 . Drone Launches . | . . . . Drone Recoveries . | . . . . Exploration | -11 -10 -10 -10 ------------- Run | Yrd Mat Min Sub Turns Passed 2108 | 82 310 1471 245 Spaces Moved 1016 | 44 169 628 175 Core 2 | 2 . . . Treads 332 | 42 169 121 . Legs 682 | . . 507 175 Wheels . | . . . . Hover . | . . . . Flight . | . . . . Fastest Speed 50 | 50 160 120 120 Average Speed 133 | 155 160 128 120 Slowest Speed 190 | 160 160 190 120 Overloaded Moves . | . . . . Propulsion Burnouts . | . . . . Robots Hopped . | . . . . Cave-ins Triggered . | . . . . Exploration Rate (%) 36 | 4 32 91 17 Regions Visited 3 Branch Regions 2 Pre-discovered Areas 1 | . . 1 . Known Exits Taken 2 | . 1 1 . Unknown Exits Taken 1 | 1 . . . Scrap Searched 5 | . . 1 4 Spaces Dug . | . . . . Terrain Destroyed 1 | . . 1 . Melee . | . . . . Projectile 1 | . . 1 . AOE . | . . . . Terrain Rammed . | . . . . Walls Destroyed . | . . . . Machines Disabled . | . . . . Actions | -11 -10 -10 -10 --------- Run | Yrd Mat Min Sub Total 1674 | 55 196 1227 196 Wait 565 | . . 556 9 Move 1013 | 43 168 627 175 Hop . | . . . . Pick Up 18 | 7 8 3 . Fast Attach 9 | 5 2 2 . Attach 1 | . 1 . . Detach . | . . . . Swap 6 | . 1 3 2 Drop 16 | . 8 6 2 Fire 46 | . 8 30 8 Melee . | . . . . Ram . | . . . . Kick . | . . . . Crush . | . . . . Escape Stasis . | . . . . Rewire . | . . . . Trap . | . . . . Miscellaneous . | . . . . Route ------- -11/Scrapyard -10/Materials (discovered 2 exits: *Min x2) -10/Mines (discovered 3 exits: *Mat x2 / *Sub) -10/Subcaves History --------- Turn | Location | Event 11 | -11/Scrapyard | Discovered new exit (range 13) 83 | -11/Scrapyard | Entered Materials 325 | -10/Materials | Build established: Mutant 371 | -10/Materials | Discovered new exit (range 14) 387 | -10/Materials | Discovered new exit (range 16) 392 | -10/Materials | Identified exit to Mines 393 | -10/Materials | Entered Mines 505 | -10/Mines | Received a Mining Laser from a helpful Derelict 532 | -10/Mines | Excavation squad dispatched 532 | -10/Mines | A large section of the Mines collapsed 735 | -10/Mines | Joined a pair of Derelicts in attacking an 0b10 outpost 746 | -10/Mines | Learned location of Zion (-6) 782 | -10/Mines | Excavation squad dispatched 818 | -10/Mines | Learned Materials terminal intel 886 | -10/Mines | Found a hidden stash of uninstalled traps 994 | -10/Mines | Discovered new exit (range 16) 1010 | -10/Mines | Identified exit to Materials 1243 | -10/Mines | Discovered exit to Materials (range 5) 1280 | -10/Mines | A weapon hastily lodged in a ceiling crevice suddenly fell to the ground 1620 | -10/Mines | Discovered new exit (range 4) 1622 | -10/Mines | Identified exit to Subcaves 1864 | -10/Mines | Entered Subcaves 1975 | -10/Subcaves | Disturbed a concealed Subdweller 1981 | -10/Subcaves | Core integrity fell below 50% 2104 | -10/Subcaves | Core integrity fell below 20% 2109 | -10/Subcaves | Destroyed by MY-DOT(R) with Subdweller Beam Cannon Last Messages --------------- Found 30 Matter. Searching scrap... Found Spk. Treads. Found Battle Rifle. Found 42 Matter. Subatomizers dissect the Disposable Heat Sink. Dropped Hvy. Assault Rifle. Acquired 10 matter. Searching scrap... Found Sub. Optics. Found Spk. Treads. Found 47 Matter. Searching scrap... Found Battle Cannon. Found 61 Matter. Dropped Lgt. Cannon. Acquired 10 matter. Subatomizers dissect the Disposable Heat Sink. Critical hit (Meltdown: +290). Map ----- +----------------------------------------------------+ | ?????????????????????????????????????????????????? | | ?????????????????????????????????????????????????? | | ?????????????????????????????????????????????????? | | ?????????????????????????????????????????????????? | | ?????????????????????????????????????????????????? | | ?????????????????????????????????????????????????? | | ?????????????????????????????????????????????????? | | ?????????????????????????????????????????????????? | | ?????????????????????????????????????????????????? | | ?????????????????????????????????????????????????? | | ?????????????????????????????????????????????????? | | ??????????????#??????????????????????????????????? | | ????????????### ???? ????????????????????????????? | | ??????????? ?""""???????????????????????????? | | ??????????? """""???????????????????????????? | | ??????????? """ " ?##??????????????????????? | | ???????????# " ""# #??????????????????????? | | ???????????# "" ???????????????????????? | | ????????????? " ??????###??????????????? | | ???????????????# " #????? ##?????????????? | | ?????????????????# ""#????? #?????????????? | | ??????????????????# "#???? ???????????????? | | ???????????????????# "#???# #????????????????? | | ???????????????????#### ####R #????????????????? | | ????????????????????#####R % #?????????????????? | | ????????????????????# ##@ ##?????????????????? | | ????????????????????# #??????????????????? | | ???????????????????## # ###??????????????????? | | ???????????????????# ## ##????????????????????? | | ???????????????????## ### ##?????????????????????? | | ???????????????????# #?????????????????????? | | ???????????????????##### #?????????????????????? | | ???????????????????????# ##?????????????????????? | | ?????????????????????### ##?????????????????????? | | ?????????????????????# #?????????????????????? | | ?????????###?????????# # #????????????????????? | | ????????? ##?????## ###????????????????????? | | ??????? #### ##?????##???????????????? | | ????? ##??## #???????????????? | | ??##? ## ##???????????????? | | ??# ##### #???????????????? | | ??? ? ## ?????## #???????????????? | | ??## ##?????#### ########???????????????? | | ??? # #????### ####%#=##????????????????? | | ???? # ????# ##?#%]=[%#????????????????? | | ????? ?????## ##??###&"##????????????????? | | ?????? ?????## # #######=!###????????????????? | | ??????# #?????# ###?# ##%# #????????????????? | | ??????# ##????## ##??# "!" ##???????????????? | | ??##### ##????# #??# &%& ##??????????????? | +----------------------------------------------------+ Best States ------------- Heat Dissipation 25 Energy Generation 10 Energy Capacity 250 Matter Stores 300 Matter Capacity 300 Sight Range 16 Terrain Scan Density 10 Evasion (%) 55 Recoil Reduction 2 Item Schematics ----------------- None Robot Schematics ------------------ None Fabricated ------------ Nothing Alien Tech Used ----------------- None Achievements -------------- None Challenges ------------ None Game ------ Seed ReflectiveProcessingDiverter Manual? 0 Play Time 00:09:59 Cumulative 74.4 hours Start 2024.10.18 @ 16:41:22 End 2024.10.18 @ 16:50:13 Sessions 1 Manual Loads 0 Difficulty Rogue Special Mode None Game No. 90 Rogue 90 Adventurer 0 Explorer 0 Win Type - Total 0 Types 0/0/0/0/0/0/0/0/0 Lore% 52 Gallery% 43 Achievement% 36 Wizard Run 0 Options --------- Layout 1 ASCII 0 Keyboard 1 Movement Numpad Keybinds 0 Fullscreen 1 Font 24/Smallcaps Map View 50x35 Zoom Use 0% Tactical HUD 0 Map Filters NONE Filters NONE Steam 1 RUN: d82b8cec-344d-4cb3-b38d-5e9abd096a94